bitfinex/quotes_ETHUSD_20251120
["timestamp","ask_amount","ask_price","bid_price","bid_amount"]
[1763646830921,5.51881019,3019.9,3019.8,0.001]
[1763646831120,8.35882033,3019.9,3019.8,0.001]
[1763646831321,9.86818933,3019.9,3019.8,0.001]
[1763646831521,9.98418933,3019.9,3019.8,0.001]
[1763646831707,9.74671033,3019.9,3019.8,0.001]
[1763646832019,9.48454533,3019.9,3019.8,0.001]
[1763646832224,5.72462533,3019.9,3019.8,0.001]
[1763646832403,5.36912533,3019.9,3019.8,0.001]
[1763646832720,5.48512533,3019.9,3019.8,0.001]
[1763646833140,7.96845833,3019.9,3019.8,0.001]
[1763646833289,8.20795833,3019.9,3019.8,0.001]
[1763646833494,5.72462533,3019.9,3019.8,0.001]
[1763646833991,11.69303533,3019.9,3019.8,0.001]
[1763646834844,5.72462533,3019.9,3019.8,0.001]
[1763646835020,1.31249664,3019.8,3018.8,0.4691]
[1763646835218,0.422004,3019.6,3017.8,5.27776029]
[1763646835428,0.405504,3019.4,3018.2,4.20274397]
[1763646835615,0.71366477,3019.4,3018.3,0.75159785]
[1763646836708,0.71366477,3019.4,3018.2,0.88956311]
[1763646837038,1.31249664,3019.2,3018.2,4.20278924]
[1763646837243,0.405504,3019.0,3018.3,0.4833]
[1763646837955,0.405504,3019.0,3018.9,0.4888]
[1763646838407,0.90699264,3019.2,3018.9,0.9721]
[1763646838608,1.31249664,3019.2,3019.1,0.6746]
[1763646838952,3.31155671,3019.8,3019.1,0.6746]
[1763646838953,0.90699264,3019.7,3019.1,0.6746]
[1763646839113,0.42347825,3019.6,3019.2,0.9721]
[1763646839308,0.42347825,3019.6,3019.2,0.4833]
[1763646839616,0.42347825,3019.6,3019.5,0.4888]
[1763646840039,0.42347825,3019.6,3019.5,0.9721]
[1763646840359,3.31337329,3019.9,3019.5,0.9721]
[1763646840360,3.3133769,3019.9,3019.5,0.9721]
[1763646840520,0.116,3019.6,3019.1,6.81025646]
[1763646840857,0.116,3019.6,3019.1,3.49801109]
[1763646841023,0.116,3019.6,3019.5,0.4888]
[1763646841226,0.116,3019.6,3019.5,0.9721]
[1763646841962,0.116,3019.6,3019.1,0.6691]
[1763646842169,0.03368486,3019.5,3019.2,0.4833]
[1763646842761,0.03368486,3019.5,3019.4,0.4888]
[1763646843266,3.34549145,3019.5,3019.4,0.9721]
[1763646844162,3.34549145,3019.5,3019.4,0.4888]
[1763646844363,0.405504,3019.4,3019.1,0.1858]
[1763646844563,0.116,3019.3,3019.2,0.4833]
[1763646845062,0.116,3019.3,3019.2,0.9721]
[1763646845267,3.42802596,3019.3,3019.2,0.4888]
[1763646845490,6.74005192,3019.3,3018.8,0.4833]
[1763646846034,0.43918886,3019.2,3018.5,0.88956311]
[1763646846362,0.43918886,3019.2,3018.6,0.4833]
[1763646846563,0.405504,3019.0,3018.4,0.88956311]
[1763646846731,0.405504,3019.0,3018.3,0.4833]
[1763646847334,0.116,3019.1,3018.3,0.4833]
[1763646847335,0.116,3018.9,3018.3,0.4833]
[1763646847558,0.116,3018.9,3018.3,3.79641903]
[1763646847758,0.116,3018.9,3018.3,0.4833]
[1763646847962,0.116,3018.9,3018.4,0.4833]
[1763646848961,0.116,3018.9,3018.8,0.001]
[1763646849171,0.521504,3018.9,3018.8,0.001]
[1763646849396,3.8339688,3018.9,3018.8,0.001]
[1763646849920,1.65963767,3021.0,3018.8,0.9591]
[1763646849921,0.5232,3019.9,3018.8,0.9591]
[1763646850077,0.52968486,3019.8,3018.8,0.4988]
[1763646850277,0.90699264,3019.6,3018.8,0.4988]
[1763646850484,0.405504,3019.4,3018.8,0.4988]
[1763646850683,0.785504,3018.9,3018.8,0.001]
[1763646850886,0.901504,3018.9,3018.8,0.001]
[1763646851084,0.785504,3018.9,3018.8,0.001]
[1763646851279,5.12096144,3018.9,3018.8,0.001]
[1763646851596,4.74096144,3018.9,3018.8,0.001]
[1763646852322,4.93260508,3018.9,3018.8,0.9591]
[1763646852615,5.04860508,3018.9,3018.8,0.001]
[1763646852988,5.04860508,3018.9,3018.8,0.4613]
[1763646855500,5.04860508,3018.9,3018.8,0.001]
[1763646855703,5.21690508,3018.9,3018.8,0.001]
[1763646855912,5.04860508,3018.9,3018.8,0.001]
[1763646856436,4.93260508,3018.9,3018.8,0.4613]
[1763646856616,5.04860508,3018.9,3018.8,0.4613]
[1763646856993,5.04860508,3018.9,3018.8,0.001]
[1763646857199,5.25058994,3018.9,3018.8,0.001]
[1763646857502,5.21690508,3018.9,3018.8,0.001]
[1763646857895,5.59480508,3018.9,3018.8,0.001]
[1763646858223,5.59489596,3018.9,3018.8,0.001]
[1763646858852,17.88074482,3018.9,3018.8,0.001]
[1763646859138,8.23186396,3018.9,3018.8,0.001]
[1763646859793,10.55691343,3018.9,3018.8,0.001]
[1763646860006,5.73666543,3018.9,3018.8,0.001]
[1763646860225,5.21699596,3018.9,3018.8,0.001]
[1763646860416,5.10099596,3018.9,3018.8,0.001]
[1763646860636,9.90924682,3018.9,3018.8,0.001]
[1763646860829,10.53637196,3018.9,3018.8,0.001]
[1763646861266,7.78599996,3018.9,3018.8,0.001]
[1763646861539,7.86778696,3018.9,3018.8,0.001]
[1763646861914,5.59489596,3018.9,3018.8,0.001]
[1763646862122,5.21699596,3018.9,3018.8,0.001]
[1763646862324,23.90834064,3018.8,3018.4,0.001]
[1763646862661,23.90834064,3018.8,3016.2,0.89309708]
[1763646862662,1.41249664,3018.2,3016.2,0.89309708]
[1763646862943,1.41249664,3018.2,3016.1,0.1943]
[1763646862944,1.31249664,3017.3,3016.1,0.1943]
[1763646863238,1.31249664,3017.1,3016.2,0.4978]
[1763646863451,0.405504,3016.9,3016.2,0.4978]
[1763646863618,0.405504,3016.7,3016.2,0.4978]
[1763646864205,0.405504,3016.7,3016.1,0.1943]
[1763646864206,0.404704,3016.7,3016.1,0.1943]
[1763646864410,0.378,3017.0,3016.1,0.1943]
[1763646864615,0.90699264,3016.6,3015.7,0.1858]
[1763646864810,0.4221145,3016.5,3015.8,0.4978]
[1763646865028,0.90699264,3016.3,3015.8,0.4978]
[1763646865343,3.31444101,3017.1,3016.4,0.6546]
[1763646865561,0.90699264,3017.0,3016.4,0.6546]
[1763646865708,0.90699264,3017.0,3016.5,0.4737]
[1763646865911,0.116,3016.9,3016.5,0.4737]
[1763646866143,0.521504,3016.9,3016.5,0.4737]
[1763646866345,0.116,3016.8,3016.5,0.4737]
[1763646866639,3.31378201,3017.7,3016.8,0.4664]
[1763646866840,1.32902114,3017.6,3016.9,0.4664]
[1763646867034,0.116,3017.5,3016.9,0.4664]
[1763646867230,4.22110412,3017.4,3017.0,0.4737]
[1763646867446,0.90699264,3017.3,3017.0,0.4737]
[1763646867621,3.31404962,3017.5,3017.3,0.4664]
[1763646867822,3.31224528,3019.2,3017.1,0.195]
[1763646867823,1.02539264,3017.9,3017.1,0.195]
[1763646868051,0.14968486,3017.8,3017.1,0.6687]
[1763646868224,0.90699264,3017.9,3017.1,0.6687]
[1763646868429,0.1184,3018.8,3017.8,0.4664]
[1763646868737,7.26109521,3018.7,3017.9,0.4664]
[1763646868940,7.26109521,3018.7,3017.2,0.4737]
[1763646869239,6.62624656,3018.3,3017.2,3.78801943]
[1763646869591,1.32889059,3018.2,3017.2,4.5177569]
[1763646869878,0.7113288,3018.1,3017.3,0.4737]
[1763646870073,0.03368486,3018.0,3017.1,0.195]
[1763646870280,0.405504,3017.9,3017.1,0.195]
[1763646870427,0.405504,3017.7,3017.1,0.195]
[1763646870623,0.03368486,3017.6,3017.1,0.195]
[1763646870874,0.405504,3017.5,3016.4,0.1943]
[1763646871056,0.14968486,3017.4,3016.6,0.4838]
[1763646871238,0.90699264,3017.2,3016.6,3.79874362]
[1763646871579,0.9406775,3017.2,3016.6,0.4838]
[1763646872263,1.31249664,3017.2,3017.1,0.6851]
[1763646872440,1.42849664,3017.2,3017.1,0.6851]
[1763646872642,0.405504,3017.2,3017.1,0.6851]
[1763646872877,0.116,3017.2,3017.1,1.1689]
[1763646873230,0.116,3017.2,3016.6,0.4838]
[1763646873231,7.68533982,3017.2,3016.6,0.4838]
[1763646873535,1.02299264,3017.1,3016.7,0.4838]
[1763646873724,1.02299264,3017.1,3017.0,0.4978]
[1763646873930,0.116,3017.1,3017.0,0.4978]
[1763646874283,0.116,3017.1,3017.0,0.9816]
[1763646874764,0.405504,3017.8,3017.0,0.9816]
[1763646874935,0.405504,3017.6,3017.1,0.6851]
[1763646875338,0.1703,3017.2,3016.4,0.1943]
[1763646875574,0.55518886,3017.1,3016.4,0.1943]
[1763646875980,0.405504,3016.9,3016.4,0.1943]
[1763646876203,0.405504,3016.7,3016.2,0.1873]
[1763646876501,0.405504,3016.5,3016.1,0.1873]
[1763646876684,0.116,3016.4,3016.1,0.1873]
[1763646876994,0.90699264,3017.4,3016.2,0.4838]
[1763646876995,0.116,3016.3,3016.2,0.4838]
[1763646877154,0.116,3016.3,3016.2,0.9816]
[1763646877354,3.3148105,3016.8,3016.2,0.9816]
[1763646877355,0.405504,3016.8,3016.2,0.9816]
[1763646877554,0.405504,3016.8,3016.5,0.4978]
[1763646877555,0.116,3016.7,3016.5,0.4978]
[1763646877789,1.02299264,3016.7,3016.5,0.4978]
[1763646878091,3.31389183,3017.6,3016.6,0.9816]
[1763646878399,0.8271507,3017.5,3016.7,0.473]
[1763646878558,0.3056467,3017.4,3016.7,0.473]
[1763646878980,0.03368486,3017.3,3016.7,0.473]
[1763646879319,1.31249664,3017.1,3016.7,0.473]
[1763646879497,0.90699264,3017.2,3016.8,0.4703]
[1763646879707,0.116,3017.0,3016.5,3.31502628]
[1763646880004,0.116,3017.0,3016.6,0.4703]
[1763646880500,0.90699264,3017.2,3016.6,0.4703]
[1763646880501,0.116,3016.9,3016.6,0.4703]
[1763646880724,0.405504,3017.3,3017.1,0.6535]
[1763646881009,1.21281676,3017.7,3017.2,0.473]
[1763646881315,0.405504,3017.3,3016.8,0.4703]
[1763646881516,0.116,3017.2,3016.8,0.4703]
[1763646881814,0.03368486,3017.1,3016.5,0.4703]
[1763646882018,0.405504,3017.0,3016.5,0.4703]
[1763646882312,0.405504,3017.1,3016.1,0.6576]
[1763646882679,0.03368486,3017.0,3016.2,0.4703]
[1763646882879,0.03368486,3017.0,3016.1,0.1873]
[1763646883285,1.31249664,3016.8,3016.1,0.1873]
[1763646883493,0.405504,3016.6,3016.1,0.6576]
[1763646883682,0.90699264,3016.8,3016.1,0.6576]
[1763646883887,0.116,3016.7,3016.2,0.4703]
[1763646884087,0.116,3016.6,3016.2,0.4703]
[1763646884697,0.116,3016.6,3016.1,0.1873]
[1763646884915,0.116,3016.6,3016.1,0.6576]
[1763646885119,0.405504,3016.5,3016.1,0.6576]
[1763646885300,6.63042036,3016.4,3016.1,0.6576]
[1763646885502,6.63042036,3016.4,3016.1,0.1873]
[1763646885705,3.31521018,3016.4,3016.1,0.1873]
[1763646885903,6.63042036,3016.4,3016.1,0.1873]
[1763646886094,3.31521018,3016.4,3016.1,0.1873]
[1763646886425,6.63042036,3016.4,3016.1,0.1873]
[1763646886794,6.63042036,3016.4,3016.0,0.001]
[1763646887024,1.02299264,3016.3,3016.1,0.1805]
[1763646887332,1.02299264,3016.3,3016.0,0.4713]
[1763646887333,1.02299264,3016.3,3016.0,0.001]
[1763646887507,0.90699264,3016.1,3016.0,0.001]
[1763646887711,1.02299264,3016.1,3016.0,0.001]
[1763646888027,1.42849664,3016.1,3016.0,0.001]
[1763646888215,0.90619264,3016.1,3016.0,0.001]
[1763646888403,1.02219264,3016.1,3016.0,0.001]
[1763646888748,0.002,3017.1,3016.0,0.9443]
[1763646889040,0.405504,3016.9,3016.1,0.6535]
[1763646889206,0.71209492,3016.9,3016.1,0.6535]
[1763646889413,0.405504,3016.5,3016.1,0.6535]
[1763646889635,0.116,3016.4,3016.1,1.1238]
[1763646889937,0.405504,3016.3,3016.0,0.001]
[1763646890120,0.521504,3016.3,3016.0,0.001]
[1763646890433,0.30685183,3016.2,3016.0,0.001]
[1763646890848,0.405504,3016.1,3016.0,0.001]
[1763646891856,5.00603657,3016.1,3016.0,0.001]
[1763646892154,5.4831884,3016.1,3016.0,0.001]
[1763646892512,5.3128884,3016.1,3016.0,0.001]
[1763646892731,4.9348884,3016.1,3016.0,0.001]
[1763646893225,5.0508884,3016.1,3016.0,0.001]
[1763646893432,5.2211884,3016.1,3016.0,0.001]
[1763646893741,5.0508884,3016.1,3016.0,0.001]
[1763646893939,5.08457326,3016.1,3016.0,0.001]
[1763646894137,5.25697326,3016.1,3016.0,0.001]
[1763646894445,5.0508884,3016.1,3016.0,0.001]
[1763646894830,5.2232884,3016.1,3016.0,0.001]
[1763646895252,1.21384447,3016.1,3016.0,0.9443]
[1763646895440,4.22253257,3016.1,3016.0,0.9443]
[1763646895760,1.02299264,3016.1,3016.0,0.9443]
[1763646895967,0.002,3017.1,3016.0,0.9443]
[1763646896143,3.72020752,3016.9,3016.1,1.1238]
[1763646896342,0.405504,3016.7,3016.1,1.1238]
[1763646896561,0.30671195,3016.7,3016.2,0.4703]
[1763646896873,1.21370459,3016.9,3016.6,0.473]
[1763646897033,0.42271195,3016.8,3016.6,0.9433]
[1763646897235,0.116,3016.7,3016.6,0.9433]
[1763646897428,0.116,3016.7,3016.1,0.1805]
[1763646897659,4.22187313,3016.7,3016.6,0.473]
[1763646897867,4.33787313,3016.7,3016.6,0.473]
[1763646898064,4.33787313,3016.7,3016.6,0.9433]
[1763646899082,4.37155799,3016.7,3016.6,0.9433]
[1763646899248,0.116,3016.7,3016.6,0.9433]
[1763646899669,0.002,3017.1,3016.6,0.9433]
[1763646899858,0.002,3017.1,3017.0,0.473]
[1763646899859,3.31649362,3017.1,3017.0,0.473]
[1763646900066,0.90899264,3017.1,3017.0,0.9433]
[1763646900282,1.02499264,3017.1,3017.0,0.9433]
[1763646900479,4.33943365,3017.1,3017.0,0.473]
[1763646900681,4.64658019,3017.1,3017.0,0.473]
[1763646900882,0.118,3017.1,3017.0,0.9433]
[1763646901390,0.002,3017.1,3017.0,0.9433]
[1763646901572,0.116,3017.1,3017.0,0.9433]
[1763646901747,0.116,3017.2,3017.0,4.25785087]
[1763646902094,0.116,3017.2,3017.1,0.89608509]
[1763646902249,0.116,3017.2,3017.1,1.1238]
[1763646902757,0.002,3017.5,3017.1,1.1238]
[1763646902961,0.002,3017.5,3017.4,0.473]
[1763646903157,0.118,3017.5,3017.4,0.473]
[1763646903357,0.118,3017.5,3017.4,0.9433]
[1763646903950,0.002,3017.5,3017.4,0.9433]
[1763646904184,0.118,3017.5,3017.4,4.25741148]
[1763646904487,3.43200165,3017.5,3017.4,0.473]
[1763646904854,3.43200165,3017.5,3017.4,0.9433]
[1763646905703,0.118,3017.5,3017.4,0.9433]
[1763646906520,0.118,3017.5,3017.4,0.473]
[1763646907086,0.018,3017.5,3017.4,0.473]
[1763646907285,0.002,3017.6,3017.4,0.9433]
[1763646907492,0.116,3017.5,3017.4,0.9433]
[1763646907706,0.116,3017.5,3017.4,0.4703]
[1763646907918,0.116,3017.5,3017.4,0.9433]
[1763646907919,3.31400165,3017.5,3017.4,0.9433]
[1763646908122,0.116,3017.5,3017.4,0.9433]
[1763646908786,3.43000165,3017.5,3017.4,0.9433]
[1763646909307,0.002,3017.6,3017.4,4.25734356]
[1763646909508,0.002,3017.6,3017.5,1.41063436]
[1763646909713,0.002,3017.6,3017.5,4.72463601]
[1763646910984,0.002,3017.6,3017.5,1.41063436]
[1763646911317,0.002,3017.6,3017.5,0.9849]
[1763646912097,0.0012,3017.6,3017.5,0.9849]
[1763646913332,0.0012,3017.6,3017.5,0.4944]
[1763646913497,0.0012,3017.6,3017.1,0.671]
[1763646913701,0.0012,3017.6,3017.5,0.4944]
[1763646914098,0.0012,3017.6,3017.5,0.9849]
[1763646915101,0.1172,3017.6,3017.5,0.9849]
[1763646915930,0.1172,3017.6,3017.5,1.41480085]
[1763646916734,0.1172,3017.6,3017.5,0.9849]
[1763646917110,3.43109183,3017.6,3017.5,0.9849]
[1763646917297,3.43109183,3017.6,3017.5,0.4944]
[1763646918144,6.82968366,3017.6,3017.1,0.1805]
[1763646918431,6.74498366,3017.6,3017.1,0.1805]
[1763646918593,10.05887549,3017.6,3017.1,0.1805]
[1763646919139,6.74498366,3017.6,3017.1,0.1805]
[1763646919444,1.31249664,3017.5,3016.8,0.4905]
[1763646920328,0.0847,3016.9,3016.3,0.4905]
[1763646920494,0.116,3016.8,3016.3,0.4905]
[1763646920720,1.31249664,3017.3,3016.3,0.4905]
[1763646920721,0.116,3016.7,3016.3,0.4905]
[1763646920894,0.116,3016.6,3016.3,0.88915294]
[1763646921191,0.4644,3017.2,3016.3,0.4905]
[1763646921192,0.116,3016.5,3016.3,0.4905]
[1763646921391,0.116,3016.5,3016.0,0.001]
[1763646921392,0.5679,3016.4,3016.0,0.001]
[1763646922006,0.405504,3016.3,3016.0,0.001]
[1763646922193,6.63086002,3016.2,3016.0,0.001]
[1763646922393,1.76439664,3016.1,3016.0,0.001]
[1763646922626,1.86149664,3016.1,3016.0,0.001]
[1763646923330,1.42849664,3016.1,3016.0,0.001]
[1763646923727,1.88039664,3016.1,3016.0,0.001]
[1763646924199,5.29303657,3016.1,3016.0,0.001]
[1763646924629,9.45802557,3016.1,3016.0,0.001]
[1763646924929,9.76397225,3016.1,3016.0,0.001]
[1763646925239,8.22504025,3016.1,3016.0,0.001]
[1763646925601,8.10904025,3016.1,3016.0,0.001]
[1763646926029,8.22504025,3016.1,3016.0,0.001]
[1763646926230,5.38588325,3016.1,3016.0,0.001]
[1763646926537,5.19593657,3016.1,3016.0,0.001]
[1763646926916,5.29303657,3016.1,3016.0,0.001]
[1763646927101,5.59870617,3016.1,3016.0,0.001]
[1763646927536,5.29303657,3016.1,3016.0,0.001]
[1763646928135,5.59852822,3016.1,3016.0,0.001]
[1763646928316,18.9748345,3016.0,3015.9,0.001]
[1763646928500,19.82942615,3016.0,3015.9,0.001]
[1763646928700,20.2994882,3016.0,3015.9,0.001]
[1763646929035,20.1991636,3016.0,3015.9,0.001]
[1763646929337,22.1749546,3016.0,3015.9,0.001]
[1763646929500,21.96978755,3016.0,3015.9,0.001]
[1763646929700,21.00778255,3016.0,3015.9,0.001]
[1763646930018,20.78452055,3016.0,3015.9,0.001]
[1763646930218,20.24221778,3016.0,3015.9,0.001]
[1763646930544,20.34219482,3016.0,3015.9,0.001]
[1763646930834,17.68452664,3015.8,3015.6,0.001]
[1763646931003,12.56411364,3015.5,3015.3,0.001]
[1763646931331,12.57990264,3015.5,3015.3,0.001]
[1763646931531,13.76199664,3015.4,3015.3,0.001]
[1763646931722,12.50869664,3015.4,3015.3,0.001]
[1763646932225,24.82963325,3015.4,3015.3,0.001]
[1763646932420,20.73212225,3015.4,3015.3,0.001]
[1763646932723,1.31249664,3015.0,3013.1,0.4529]
[1763646932923,0.405504,3014.2,3013.1,0.4529]
[1763646933234,1.31249664,3014.0,3013.0,0.1963]
[1763646933637,0.405504,3013.8,3013.0,0.1963]
[1763646933928,0.405504,3013.6,3012.7,0.4529]
[1763646934130,0.5776,3013.9,3012.6,0.1963]
[1763646934131,0.4536,3013.8,3012.6,0.1963]
[1763646934331,0.405504,3013.3,3012.6,0.6492]
[1763646934633,9.95553195,3013.4,3012.6,0.6492]
[1763646934634,0.405504,3013.1,3012.6,0.6492]
[1763646935010,0.116,3013.2,3012.6,0.6492]
[1763646935011,0.116,3013.0,3012.7,3.7721817]
[1763646935211,0.405504,3013.9,3013.1,0.199]
[1763646935413,0.116,3013.8,3013.2,0.4529]
[1763646935816,0.90699264,3014.0,3013.2,0.4529]
[1763646935817,0.405504,3013.7,3013.2,0.4529]
[1763646936146,0.1152,3013.6,3013.5,0.4534]
[1763646936303,3.31766004,3014.2,3013.5,0.4534]
[1763646936304,0.90699264,3013.8,3013.6,0.4534]
[1763646936505,0.90699264,3014.3,3013.8,0.4534]
[1763646936708,0.116,3014.2,3013.2,0.4529]
[1763646936940,0.521504,3014.2,3013.2,0.4529]
[1763646937141,0.521504,3014.2,3012.6,0.1963]
[1763646937142,1.31249664,3013.9,3012.6,0.1963]
[1763646937318,0.405504,3013.2,3012.6,0.1963]
[1763646937641,0.405504,3013.0,3012.6,0.1963]
[1763646938052,0.405504,3013.0,3012.9,0.4534]
[1763646938210,0.124,3013.6,3012.7,0.4529]
[1763646938211,0.405504,3013.2,3012.7,0.4529]
[1763646938412,0.405504,3013.0,3012.7,0.4529]
[1763646938613,0.116,3013.1,3012.7,0.4529]
[1763646939255,0.116,3013.0,3012.7,0.4529]
[1763646939619,0.405504,3013.2,3012.7,0.4529]
[1763646939820,0.90699264,3013.3,3012.7,0.4529]
[1763646939821,0.116,3013.1,3012.7,0.4529]
[1763646940222,0.116,3013.1,3012.5,0.001]
[1763646940223,1.31249664,3012.8,3012.5,0.001]
[1763646940425,0.529504,3012.6,3012.5,0.001]
[1763646940619,1.98189664,3012.6,3012.5,0.001]
[1763646940847,0.0025,3012.5,3012.2,0.001]
[1763646941032,17.14945605,3012.1,3012.0,0.001]
[1763646941239,10.10698705,3012.1,3012.0,0.001]
[1763646941433,10.67048705,3012.1,3012.0,0.001]
[1763646941758,10.67048705,3012.1,3009.7,1.10599264]
[1763646941759,0.405504,3011.8,3010.3,0.4629]
[1763646941932,10.41680964,3011.8,3010.3,0.4629]
[1763646942131,10.96220964,3011.8,3010.3,0.4629]
[1763646942334,5.30477023,3011.8,3010.6,0.4629]
[1763646942538,9.70182423,3011.8,3010.5,0.4629]
[1763646942758,10.35735123,3011.8,3010.5,0.4629]
[1763646943062,10.35735123,3011.8,3010.0,3.52135031]
[1763646943063,10.35735123,3011.8,3010.0,0.1991]
[1763646943299,5.30477023,3011.8,3010.5,0.4629]
[1763646943436,7.44342923,3011.8,3010.5,0.4629]
[1763646943827,14.68720023,3011.8,3010.5,0.4629]
[1763646944037,11.28330223,3011.8,3011.1,0.1991]
[1763646944247,4.63277023,3011.8,3011.1,0.1991]
[1763646944459,1.42849664,3011.8,3011.7,0.4799]
[1763646944760,1.42849664,3011.8,3011.7,0.001]
[1763646944959,1.42849664,3011.8,3011.7,0.9428]
[1763646944960,1.02299264,3011.8,3011.7,0.9428]
[1763646945162,6.63964341,3012.9,3012.0,0.001]
[1763646945163,6.63900414,3012.5,3012.0,0.001]
[1763646945659,0.116,3012.4,3012.1,0.1991]
[1763646946040,0.03368486,3012.3,3012.1,0.1991]
[1763646946242,0.116,3012.2,3012.1,0.1991]
[1763646946454,3.84005773,3012.7,3012.1,0.1991]
[1763646946455,3.31946732,3012.6,3012.2,0.9418]
[1763646946631,3.31946732,3012.6,3012.3,0.4629]
[1763646946632,1.02299264,3012.5,3012.3,0.4629]
[1763646946827,3.31895121,3013.0,3012.5,0.4789]
[1763646947070,1.0566775,3012.9,3012.5,0.4789]
[1763646947274,9.50244821,3013.4,3012.1,3.51899053]
[1763646947275,3.31790296,3014.0,3012.9,0.4789]
[1763646947472,11.71151001,3013.9,3013.0,0.4789]
[1763646947683,10.71441323,3013.9,3013.0,0.4789]
[1763646947991,10.71441323,3013.9,3013.1,0.1991]
[1763646948193,10.71441323,3013.9,3012.4,0.4629]
[1763646948194,4.15879264,3013.8,3012.4,0.4629]
[1763646948395,6.63658082,3013.6,3012.4,3.78251204]
[1763646948561,0.14968486,3013.5,3012.4,0.8411512]
[1763646948891,0.14968486,3013.5,3012.5,0.4629]
[1763646949191,0.405504,3013.4,3012.5,0.4629]
[1763646949609,0.405504,3013.2,3012.5,0.4629]
[1763646949784,0.14968486,3013.1,3012.1,3.98194181]
[1763646950107,0.405504,3013.0,3012.2,0.4629]
[1763646950268,0.405504,3013.2,3013.0,0.4789]
[1763646950588,7.5442342,3013.3,3012.2,0.4629]
[1763646950589,0.405504,3013.1,3012.2,0.4629]
[1763646950812,0.116,3013.0,3012.3,3.78261825]
[1763646950991,7.5442342,3013.3,3012.3,1.19305807]
[1763646951156,0.521504,3013.2,3012.4,0.4629]
[1763646951357,0.405504,3013.2,3012.4,0.4629]
[1763646951562,0.90699264,3013.5,3013.1,0.678]
[1763646951792,0.521504,3013.4,3013.2,0.4789]
[1763646952162,0.405504,3013.4,3013.2,0.4789]
[1763646952359,3.84012478,3013.3,3013.2,0.4789]
[1763646952611,0.90699264,3013.2,3013.1,0.1991]
[1763646953562,0.90699264,3013.2,3012.9,0.4629]
[1763646953767,0.90699264,3013.2,3012.1,0.1991]
[1763646953768,0.9406775,3013.2,3012.5,0.4629]
[1763646954622,0.90699264,3013.0,3012.5,0.4629]
[1763646954820,0.115,3012.9,3012.5,0.4629]
[1763646955118,0.9406775,3013.0,3012.5,0.4629]
[1763646955327,0.9406775,3013.0,3012.5,3.78238917]
[1763646955625,0.90699264,3013.5,3012.5,4.49259836]
[1763646955924,0.115,3013.4,3013.2,0.1991]
[1763646956336,3.31812476,3013.8,3013.3,0.9418]
[1763646956487,0.115,3013.7,3013.4,0.4629]
[1763646956896,0.405504,3013.8,3013.4,0.4629]
[1763646957189,0.90699264,3013.9,3013.7,0.4789]
[1763646957394,6.30224341,3014.9,3013.8,0.4789]
[1763646957395,7.34436847,3014.7,3013.8,0.4789]
[1763646957592,7.34436847,3014.7,3013.9,0.4789]
[1763646957593,0.41964953,3014.6,3013.9,0.4789]
[1763646957787,1.21164217,3014.6,3013.9,0.4789]
[1763646958033,0.41964953,3014.5,3013.9,0.4789]
[1763646958236,0.03368486,3014.4,3013.7,0.4629]
[1763646958528,0.90699264,3014.2,3013.7,0.4629]
[1763646958825,0.9406775,3014.2,3013.7,0.4629]
[1763646958994,0.9406775,3014.2,3014.1,0.4789]
[1763646959189,1.02199264,3014.2,3014.1,0.4789]
[1763646959394,1.32702098,3014.2,3014.1,0.4789]
[1763646959604,0.90699264,3014.2,3014.1,0.4789]
[1763646959823,0.115,3014.2,3014.1,0.9418]
[1763646960127,0.1142,3014.2,3014.1,0.9418]
[1763646960340,0.115,3014.2,3014.1,0.9418]
[1763646960891,3.43262988,3014.2,3014.1,0.9418]
[1763646961295,0.115,3014.2,3014.1,0.9418]
[1763646961750,3.31718967,3014.6,3014.1,0.9418]
[1763646961926,1.17931956,3015.9,3014.8,0.4789]
[1763646961927,1.34028967,3015.9,3014.8,0.4789]
[1763646962144,1.34028967,3015.9,3013.6,0.90699264]
[1763646962145,3.009569,3015.7,3015.1,0.4789]
[1763646962338,0.42007794,3015.6,3015.1,0.1991]
[1763646962540,0.90699264,3015.4,3015.1,0.1991]
[1763646962736,0.90699264,3015.4,3014.9,0.4629]
[1763646962737,0.3387628,3015.3,3014.4,0.4629]
[1763646962910,0.115,3015.2,3014.4,0.4629]
[1763646963109,0.002,3014.4,3014.0,0.1991]
[1763646963347,0.115,3014.3,3014.0,0.662]
[1763646963559,0.115,3014.3,3014.0,0.1991]
[1763646964517,3.31762988,3014.2,3014.0,0.1991]
[1763646964929,6.63525976,3014.2,3014.0,0.1991]
[1763646965131,3.43252967,3014.3,3014.1,0.4789]
[1763646965343,6.7837442,3014.3,3014.1,0.4789]
[1763646965553,0.03368486,3014.2,3014.1,0.4789]
[1763646966169,0.03368486,3014.2,3014.1,0.9418]
[1763646966355,0.115,3014.2,3014.1,0.9418]
[1763646966754,3.43262988,3014.2,3013.7,0.4629]
[1763646966985,6.78394462,3014.2,3013.7,0.4629]
[1763646967194,3.31762988,3014.2,3013.3,0.4629]
[1763646967361,0.14868486,3014.1,3013.3,0.4629]
[1763646967697,0.405504,3014.0,3013.3,0.4629]
[1763646968404,0.405504,3013.8,3013.2,0.1991]
[1763646968549,0.405504,3013.8,3013.2,0.6796]
[1763646968550,3.31829041,3013.6,3013.2,0.6796]
[1763646968896,6.63658082,3013.6,3013.2,0.6796]
[1763646969186,6.63658082,3013.6,3013.1,0.1853]
[1763646969349,0.115,3013.7,3013.5,0.4792]
[1763646969350,3.31819345,3013.7,3013.5,0.4792]
[1763646969576,3.31819345,3013.7,3013.1,0.1853]
[1763646969577,0.115,3013.6,3013.2,0.4805]
[1763646970371,6.6363869,3013.7,3013.2,0.4805]